bitfinex-derivatives/quotes_ETHF0:USTF0_20250404
["timestamp","ask_amount","ask_price","bid_price","bid_amount"]
[1743790393880,1.10204,1815.5,1815.4,0.00826902]
[1743790394174,1.10243,1814.9,1814.7,5.87]
[1743790394377,1.10254,1814.7,1814.5,41.90263]
[1743790394683,8.51544,1814.6,1814.3,1.10274]
[1743790394875,1.10274,1814.4,1814.1,3.6011]
[1743790395082,3.2078,1814.4,1814.2,1.10279]
[1743790395280,1.8268,1814.3,1814.2,1.10279]
[1743790395480,0.00826902,1814.4,1814.3,1.10277]
[1743790396379,1.10243,1814.9,1814.7,1.10249]
[1743790396576,1.10243,1814.9,1814.3,6.97277]
[1743790396774,1.8313,1814.8,1814.7,1.10252]
[1743790397380,1.8313,1814.8,1814.6,0.00826902]
[1743790397381,2.93378,1814.8,1814.6,0.00826902]
[1743790397581,6.14158,1814.8,1814.6,1.11084902]
[1743790397879,1.8313,1814.8,1814.7,1.10252]
[1743790398083,0.00826902,1814.9,1814.8,1.10246]
[1743790398285,1.11070902,1814.9,1814.6,1.11080902]
[1743790398478,1.8313,1814.8,1814.6,0.00826902]
[1743790398676,2.93378,1814.8,1814.6,0.00826902]
[1743790398876,6.14158,1814.8,1814.6,0.00826902]
[1743790399484,6.14158,1814.8,1814.6,1.11084902]
[1743790399679,5.0391,1814.8,1814.6,1.11080902]
[1743790399880,1.8313,1814.8,1814.7,1.10252]
[1743790400380,1.8313,1814.8,1814.6,1.11081902]
[1743790400777,2.93379,1814.8,1814.6,0.00826902]
[1743790400976,6.14159,1814.8,1814.6,0.00826902]
[1743790401376,5.0391,1814.8,1814.6,0.00826902]
[1743790401678,6.14161,1814.8,1814.6,0.00826902]
[1743790401878,5.30852,1814.7,1814.6,0.00826902]
[1743790402078,9.02152,1814.7,1814.6,0.00826902]
[1743790402883,7.919,1814.7,1814.6,0.00826902]
[1743790403186,7.919,1814.7,1814.6,1.11085902]
[1743790403383,3.713,1814.7,1814.6,1.11085902]
[1743790403589,3.2078,1814.8,1814.6,1.11085902]
[1743790403790,3.2078,1814.8,1814.7,1.8631]
[1743790404288,6.15326,1814.8,1814.7,1.8631]
[1743790404490,1.10252,1814.7,1814.6,0.00826902]
[1743790404690,1.843,1814.7,1814.6,1.11085902]
[1743790404991,0.00826902,1814.9,1814.6,0.00826902]
[1743790405291,0.00826902,1814.9,1814.7,2.84708]
[1743790405590,1.10246,1814.8,1814.7,1.7446]
[1743790405791,1.10251,1814.8,1814.6,0.00826902]
[1743790405990,2.96762,1814.7,1814.6,0.00826902]
[1743790406186,6.17542,1814.7,1814.6,0.00826902]
[1743790406390,10.38042,1814.7,1814.6,0.00826902]
[1743790407095,12.88042,1814.7,1814.6,0.00826902]
[1743790407592,1.10271,1814.4,1814.3,1.7446]
[1743790407885,11.7779,1814.7,1814.1,2.90074]
[1743790407886,3.2078,1814.5,1814.1,2.90074]
[1743790408085,1.8651,1814.3,1814.2,1.10281]
[1743790408284,1.8651,1814.3,1814.2,1.8492]
[1743790408485,1.8651,1814.3,1814.2,2.95203]
[1743790409992,6.8325,1814.6,1814.5,1.10265]
[1743790410295,3.6247,1814.6,1814.5,1.10265]
[1743790410591,4.205,1814.7,1814.6,1.10259]
[1743790411888,7.11492,1814.7,1814.5,1.10262]
[1743790412191,6.0124,1814.7,1814.6,1.10259]
[1743790413596,6.0124,1814.7,1814.4,1.8492]
[1743790413990,3.2078,1814.6,1814.4,1.8492]
[1743790414187,1.8074,1814.5,1814.4,2.95191]
[1743790415289,6.0856,1814.7,1814.6,1.10259]
[1743790415489,7.18812,1814.7,1814.6,1.10259]
[1743790415795,7.18816,1814.7,1814.5,1.1026]
[1743790415989,1.10259,1814.6,1814.4,1.8492]
[1743790416184,7.18817,1814.7,1814.5,1.10265]
[1743790416397,1.10265,1814.5,1814.4,1.8492]
[1743790416698,4.86162,1814.6,1814.4,1.8492]
[1743790416994,6.74222,1814.6,1814.4,1.8492]
[1743790417293,6.74222,1814.6,1814.4,2.95185]
[1743790417598,1.10265,1814.5,1814.4,1.8492]
[1743790417796,1.8653,1814.5,1814.4,1.10271]
[1743790417999,0.5512,1814.8,1814.5,1.10265]
[1743790418296,0.5512,1814.8,1814.7,1.10252]
[1743790419189,6.72681,1814.8,1814.6,1.10258]
[1743790419396,1.10253,1814.7,1814.6,1.10256]
[1743790419695,2.96783,1814.7,1814.5,1.7704]
[1743790419897,1.8653,1814.7,1814.6,1.10259]
[1743790420196,2.96785,1814.7,1814.6,1.10259]
[1743790420589,1.8653,1814.7,1814.6,1.10259]
[1743790421293,2.96782,1814.7,1814.5,2.873]
[1743790421596,1.10259,1814.6,1814.5,1.7704]
[1743790421796,5.0234,1814.6,1814.3,6.97273]
[1743790421998,1.10268,1814.5,1814.4,1.10271]
[1743790422298,4.31043,1814.6,1814.3,1.7456]
[1743790422598,2.91825,1814.5,1814.4,1.7456]
[1743790422795,1.8156,1814.5,1814.3,1.10272]
[1743790422999,1.10271,1814.4,1814.2,2.84838]
[1743790423199,1.8156,1814.3,1814.2,2.84838]
[1743790423500,1.8156,1814.3,1814.2,3.59921808]
[1743790424598,1.8156,1814.3,1814.2,2.84838]
[1743790424793,1.8156,1814.3,1814.2,3.59883436]
[1743790424995,1.8156,1814.3,1814.2,2.84838]
[1743790425200,2.94251,1814.4,1814.3,1.10277]
[1743790425698,1.8398,1814.4,1814.3,1.10277]
[1743790426299,2.94251,1814.4,1814.3,1.10277]
[1743790426503,4.67191,1814.4,1814.2,2.84839]
[1743790426893,4.67191,1814.4,1814.2,1.7456]
[1743790426894,1.10277,1814.3,1814.2,1.7456]
[1743790427096,1.7294,1814.3,1814.2,2.84843]
[1743790428101,4.203,1814.5,1814.4,1.10271]
[1743790428292,4.203,1814.5,1814.4,2.81641]
[1743790428494,4.203,1814.5,1813.9,5.87]
[1743790428495,2.75681,1814.4,1813.9,5.87]
[1743790428696,1.10288,1814.2,1814.0,3.56727059]
[1743790429001,1.10282,1814.3,1814.2,1.10283]
[1743790429202,4.31062,1814.3,1814.2,1.10283]
[1743790429403,4.31062,1814.3,1814.1,1.10284]
[1743790429696,6.10562,1814.3,1814.2,1.8899]
[1743790429900,1.10287,1814.2,1814.0,1.8899]
[1743790430100,1.795,1814.2,1814.1,1.10289]
[1743790430498,1.10281,1814.3,1814.2,1.10283]
[1743790430801,2.89781,1814.3,1814.2,1.10283]
[1743790431301,6.10561,1814.3,1814.1,1.10284]
[1743790431503,5.0028,1814.3,1814.1,1.10284]
[1743790431696,1.10283,1814.2,1814.1,1.10284]
[1743790431896,1.795,1814.2,1814.1,1.10284]
[1743790432201,1.795,1814.2,1814.0,1.8899]
[1743790432404,1.795,1814.2,1814.1,1.10289]
[1743790433506,4.31058,1814.3,1814.2,1.10283]
[1743790434008,6.18078,1814.3,1814.1,1.10283]
[1743790434204,2.97298,1814.3,1814.2,1.8884]
[1743790434403,3.2078,1814.5,1814.3,1.10273]
[1743790434705,3.2078,1814.5,1814.2,1.8884]
[1743790434906,1.10276,1814.4,1814.2,1.8884]
[1743790435094,1.8702,1814.4,1814.2,2.99119]
[1743790435302,4.31048,1814.5,1814.4,1.10271]
[1743790435907,3.2078,1814.5,1814.4,1.10271]
[1743790436103,1.8702,1814.6,1814.5,1.10265]
[1743790436305,42.1508,1814.7,1814.6,1.10259]
[1743790436900,38.5,1814.7,1814.6,1.10259]
[1743790437101,37.9488,1814.7,1814.6,1.10259]
[1743790438304,39.05136,1814.7,1814.5,1.1026]
[1743790438508,40.85506,1814.7,1814.5,2.9966]
[1743790438906,40.85506,1814.7,1814.6,1.10259]
[1743790439102,39.7525,1814.7,1814.6,1.10259]
[1743790439403,40.85502,1814.7,1814.6,1.10259]
[1743790439701,39.7525,1814.7,1814.6,1.10259]
[1743790440699,37.9488,1814.7,1814.6,1.10259]
[1743790442300,39.05132,1814.7,1814.6,1.10259]
[1743790442500,36.5197,1814.7,1814.6,1.10259]
[1743790442704,0.00826902,1814.9,1814.8,1.10246]
[1743790442909,0.00826902,1814.9,1814.8,5.05948882]
[1743790443206,3.2078,1815.1,1815.0,1.10234]
[1743790443802,3.2078,1815.1,1815.0,2.84384]
[1743790444300,3.17473293,1815.1,1815.0,3.59283663]
[1743790444506,0.00826902,1815.2,1815.1,1.10228]
[1743790446099,0.00826902,1815.2,1815.1,2.85558]
[1743790446304,0.00826902,1815.2,1815.1,6.10369242]
[1743790446602,1.8217,1815.8,1815.1,6.10369242]
[1743790446603,35.2882,1815.9,1815.8,1.10186]
[1743790446799,4.30955,1816.0,1815.9,1.1018]
[1743790447298,2.4133,1816.0,1815.9,1.1018]
[1743790447503,3.51504,1816.0,1815.6,47.15258]
[1743790447704,5.6211,1816.0,1815.6,40.8]
[1743790447904,4.30968,1815.8,1815.6,1.10193]
[1743790448104,1.10192,1815.7,1815.5,1.10199]
[1743790448307,1.10192,1815.7,1815.5,1.10202]
[1743790448308,2.90056,1815.7,1815.5,1.10202]
[1743790448607,1.7986,1815.7,1815.2,6.33193]
[1743790448803,1.7986,1815.7,1815.3,2.75539]
[1743790449014,1.7986,1815.7,1815.5,1.102]
[1743790449015,2.90053,1815.7,1815.5,1.102]
[1743790449305,4.76483,1815.7,1815.5,1.102]
[1743790449505,8.5087,1815.8,1815.6,1.10196]
[1743790449705,1.7986,1815.7,1815.6,1.10196]
[1743790450905,2.90055,1815.7,1815.5,1.8905]
[1743790451104,1.7986,1815.7,1815.5,2.99252]
[1743790451304,2.90056,1815.7,1815.5,2.99252]
[1743790451507,1.7986,1815.7,1815.5,1.8905]
[1743790452000,1.10198,1815.6,1815.5,1.8905]
[1743790452202,1.10198,1815.6,1815.2,3.5764]
[1743790452507,1.8951,1815.5,1815.4,1.1021]
[1743790452711,1.7149,1815.6,1815.5,1.10204]
[1743790453303,3.61,1815.6,1815.5,1.10204]
[1743790453497,3.2078,1815.8,1815.7,1.10192]
[1743790454311,4.9679,1815.8,1815.7,1.10192]
[1743790454508,1.8643,1815.9,1815.8,1.10186]
[1743790454810,2.96611,1815.9,1815.8,1.10186]
[1743790454998,3.6244,1815.9,1815.8,1.10186]
[1743790455196,1.10189,1815.8,1815.6,1.8905]
[1743790455401,1.7601,1815.7,1815.6,2.99243]
[1743790455801,2.86202,1815.7,1815.6,2.99243]
[1743790456003,1.7601,1815.7,1815.6,2.99243]
[1743790456999,0.00826902,1816.0,1815.9,1.1018]
[1743790457602,0.00826902,1816.0,1815.9,2.9438]
[1743790461312,0.00826902,1816.0,1815.9,5.4438]
[1743790461717,0.00826902,1816.0,1815.9,7.1378]
[1743790463919,0.00826902,1816.0,1815.9,2.9438]
[1743790464924,1.11003902,1816.0,1815.9,1.1018]
[1743790465222,5.55086902,1816.0,1815.9,1.1018]
[1743790465517,5.55086902,1816.0,1815.7,1.7073]
[1743790465717,1.8084,1815.9,1815.8,1.10186]
[1743790466114,3.74246902,1816.0,1815.7,1.7073]
[1743790466318,0.00826902,1816.0,1815.9,1.1018]
[1743790466618,0.00826902,1816.0,1815.9,2.9317]
[1743790466816,0.00826902,1816.0,1815.9,43.7317]
[1743790467417,0.00826902,1816.0,1815.9,44.47584281]
[1743790467613,0.00826902,1816.0,1815.9,43.7317]
[1743790467818,0.00826902,1816.0,1815.9,2.9317]
[1743790469829,1.86756902,1816.0,1815.9,2.9317]
[1743790471327,2.7545,1815.9,1815.2,3.2078]
[1743790471530,2.7545,1815.9,1815.0,11.38153]
[1743790471531,1.10207,1815.5,1815.3,1.8379]
[1743790471837,1.8593,1815.4,1815.3,43.74006]
[1743790472840,1.10219,1815.3,1815.0,7.7055]
[1743790473030,1.8792,1815.2,1815.1,1.10228]
[1743790473432,1.8792,1815.2,1815.1,41.90228]
[1743790473631,1.8229,1815.3,1815.2,1.10222]
[1743790473830,3.7021,1815.3,1815.2,2.97492]
[1743790474031,4.80426,1815.3,1815.2,2.97492]
[1743790474241,3.7021,1815.3,1815.2,2.97492]
[1743790474738,3.7021,1815.3,1815.2,1.10222]
[1743790476532,3.7021,1815.3,1815.1,2.97495]
[1743790476943,1.10222,1815.2,1815.1,1.10225]
[1743790477140,1.8302,1815.2,1815.1,1.10225]
[1743790478537,1.10228,1815.1,1815.0,49.5794]
[1743790478745,1.10228,1815.1,1815.0,47.7723]
[1743790479036,2.85188,1815.1,1815.0,6.9723]
[1743790479238,1.10234,1815.0,1814.9,0.00826902]
[1743790479546,6.07004,1815.0,1814.9,0.00826902]
[1743790480335,4.9677,1815.0,1814.9,0.00826902]
[1743790480536,6.07004,1815.0,1814.9,0.00826902]
[1743790480741,8.57004,1815.0,1814.9,0.00826902]
[1743790481138,1.10252,1814.7,1814.4,5.87]
[1743790481342,1.10252,1814.7,1814.5,1.10265]
[1743790481343,5.3186,1814.6,1814.5,1.10265]
[1743790481743,5.3186,1814.6,1814.5,41.90265]
[1743790482332,9.62899,1814.6,1814.5,40.8]
[1743790483241,8.5264,1814.6,1814.4,0.00826902]
[1743790483439,8.5264,1814.6,1814.5,1.10265]
[1743790483936,8.5264,1814.6,1814.4,1.11092902]
[1743790484132,8.5264,1814.6,1814.5,1.10265]
[1743790484637,0.00826902,1814.7,1814.6,1.10259]
[1743790485043,0.00826902,1814.7,1814.6,3.60259]
[1743790485237,0.00826902,1814.7,1814.6,6.81039]
[1743790485438,1.79,1815.0,1814.9,1.1024]
[1743790485944,3.6685,1815.0,1814.9,1.1024]
[1743790486246,6.05266,1815.2,1815.0,1.10232]
[1743790486443,1.88676902,1815.1,1815.0,1.10232]
[1743790486643,2.98904902,1815.1,1815.0,1.10232]
[1743790487040,1.10234,1815.0,1814.8,2.80381]
[1743790487245,1.8785,1815.0,1814.8,1.7014]
[1743790487440,2.98086,1815.0,1814.8,2.80381]
[1743790487747,1.10246,1814.8,1814.7,1.10248]
[1743790487944,1.8194,1814.9,1814.8,1.10246]
[1743790488140,1.8194,1814.9,1814.7,1.10247]
[1743790488141,2.92182,1814.9,1814.7,1.10247]
[1743790488341,1.8194,1814.9,1814.8,1.10246]
[1743790488648,2.9218,1814.9,1814.7,1.10247]
[1743790488947,1.8194,1814.9,1814.8,1.10246]
[1743790489145,2.9218,1814.9,1814.7,1.10247]
[1743790489347,2.9218,1814.9,1814.7,2.88887]
[1743790489549,4.31019,1815.0,1814.8,1.10246]
[1743790489846,4.31017,1815.0,1814.8,1.10246]
[1743790490244,4.31019,1815.0,1814.9,1.1024]
[1743790490446,3.2078,1815.0,1814.9,1.1024]
[1743790490645,0.00826902,1815.1,1814.7,1.7864]
[1743790490839,1.1024,1814.9,1814.8,2.97764]
[1743790491050,1.10246,1814.8,1814.7,1.10248]
[1743790491249,4.3103,1814.8,1814.6,1.8752]
[1743790491450,1.10252,1814.7,1814.6,1.8752]
[1743790491651,3.6664,1814.7,1814.6,1.10257]
[1743790491846,3.6664,1814.7,1814.5,2.97782]
[1743790492051,1.10259,1814.6,1814.5,2.97782]
[1743790492252,3.6664,1814.7,1814.6,1.10259]
[1743790492441,3.6664,1814.7,1814.6,2.97779]
[1743790494246,4.76892,1814.7,1814.6,2.97779]
[1743790494548,1.10265,1814.5,1814.4,1.11095902]
[1743790494750,3.2078,1814.5,1814.4,1.11095902]
[1743790495253,1.869,1814.7,1814.6,1.10259]
[1743790495454,7.3968,1814.9,1814.6,40.8]
[1743790495652,8.49926,1814.9,1814.7,1.8342]
[1743790495855,8.49926,1814.9,1814.7,2.93668]
[1743790496153,7.3968,1814.9,1814.7,2.93668]
[1743790496353,8.4992,1814.9,1814.8,1.8342]
[1743790496548,8.4992,1814.9,1814.7,1.10248]
[1743790496755,7.3968,1814.9,1814.8,1.10246]
[1743790496944,3.2078,1814.9,1814.8,1.10246]
[1743790497149,3.6279,1815.0,1814.9,1.1024]
[1743790497857,9.05858902,1815.1,1815.0,1.10234]
[1743790497858,0.55946902,1815.1,1815.0,1.10234]
[1743790498357,0.00826902,1815.1,1815.0,1.10234]
[1743790499559,1.11054902,1815.1,1815.0,1.10234]
[1743790499758,1.11054902,1815.1,1814.9,2.81276]
[1743790500163,1.10234,1815.0,1814.7,6.62]
[1743790500351,3.21606902,1815.1,1814.9,1.1024]
[1743790500653,1.1024,1814.9,1814.8,1.7545]
[1743790500859,7.3958,1815.0,1814.4,3.21606902]
[1743790501061,1.10259,1814.6,1814.5,2.85715]
[1743790501357,1.10252,1814.7,1814.5,2.8571]
[1743790501557,3.2078,1814.7,1814.4,0.00826902]
[1743790501758,9.1363,1814.7,1814.4,2.86543902]
[1743790501955,1.10261,1814.6,1814.4,2.86542902]
[1743790502156,1.10261,1814.6,1814.4,2.86541902]
[1743790502354,1.10259,1814.6,1814.5,1.10262]
[1743790502554,2.97153,1814.6,1814.4,2.86543902]
[1743790502751,1.10265,1814.5,1814.4,1.76276902]
[1743790502951,7.83345,1814.5,1813.9,9.0778]
[1743790503160,3.2078,1814.1,1813.9,1.10301]
[1743790503355,3.2078,1814.3,1813.9,41.90297]
[1743790503554,1.10292,1814.1,1814.0,1.792]
[1743790503957,1.10292,1814.1,1813.6,5.87]
[1743790503958,7.3958,1814.1,1813.6,5.87]
[1743790504160,1.8689,1814.0,1813.9,1.11127902]
[1743790504564,1.8689,1814.0,1813.9,41.91127902]
[1743790504760,7.3958,1814.1,1813.9,41.91127902]
[1743790504963,1.10295,1814.0,1813.9,40.80826902]
[1743790505163,2.97185,1814.0,1813.9,40.80826902]
[1743790505462,2.97185,1814.0,1813.9,43.70327902]
[1743790505463,1.8689,1814.0,1813.9,43.70327902]
[1743790505659,7.3958,1814.1,1813.9,42.60026902]
[1743790505864,8.49872,1814.1,1813.9,43.70324902]
[1743790506165,1.10295,1814.0,1813.9,42.60026902]
[1743790506359,10.23144,1814.1,1813.9,43.70326902]
[1743790506759,3.2078,1814.1,1814.0,1.10295]
[1743790506956,1.89266902,1814.2,1814.1,1.10289]
[1743790506957,3.21606902,1814.2,1814.1,1.10289]
[1743790507162,0.00826902,1814.2,1814.1,1.10289]
[1743790507757,0.00826902,1814.2,1814.1,4.34988725]
[1743790507959,41.4594,1814.6,1814.5,1.10265]
[1743790508166,1.10242,1814.9,1814.4,2.75677]
[1743790508358,1.1024,1814.9,1814.5,8.13547]
[1743790508559,3.2078,1814.8,1814.7,1.10248]
[1743790508758,1.10246,1814.8,1814.7,1.10248]
[1743790508958,4.3103,1814.8,1814.6,1.10256]
[1743790509159,4.3103,1814.8,1814.5,5.3789]
[1743790509160,3.2078,1814.8,1814.7,2.86862]
[1743790509460,2.84336902,1814.9,1814.7,2.86857]
[1743790509767,1.74096902,1814.9,1814.8,1.10246]
[1743790510163,2.84336902,1814.9,1814.7,2.86858]
[1743790510364,2.84337902,1814.9,1814.8,1.10246]
[1743790510563,2.84337902,1814.9,1814.7,2.86857]
[1743790510765,1.10246,1814.8,1814.7,2.86857]
[1743790510963,1.74096902,1814.9,1814.7,2.86858]
[1743790511165,1.74096902,1814.9,1814.8,1.10246]
[1743790511463,0.00826902,1814.9,1814.8,1.10246]
[1743790512163,0.00826902,1814.9,1814.8,4.35001893]
[1743790512770,0.00826902,1814.9,1814.8,4.34953431]
[1743790513767,0.00826902,1814.9,1814.8,45.14953431]
[1743790514472,0.00826902,1814.9,1814.8,42.64953431]
[1743790514769,0.00826902,1814.9,1814.8,45.85733431]
[1743790514973,0.00826902,1814.9,1814.8,1.10246]
[1743790515163,1.10246,1814.8,1814.7,2.86859]
[1743790515560,2.89060902,1814.9,1814.7,1.7661]
[1743790515767,2.89060902,1814.9,1814.8,1.10246]
[1743790515968,3.44180902,1814.9,1814.8,1.10246]
[1743790516168,1.78816902,1814.9,1814.8,1.10246]
[1743790516370,0.00826902,1814.9,1814.8,1.10246]
[1743790517072,2.89056902,1814.9,1814.8,1.10246]
[1743790517270,1.78816902,1814.9,1814.7,2.8686]
[1743790517470,1.10246,1814.8,1814.5,4.9634]
[1743790517666,1.7799,1814.7,1814.6,1.10259]
[1743790517868,2.88242,1814.7,1814.6,1.10259]
[1743790518069,1.7799,1814.7,1814.6,1.10259]
[1743790518277,1.10259,1814.6,1814.4,1.1027]
[1743790518473,1.10271,1814.4,1814.3,2.85162]
[1743790518773,1.10271,1814.4,1814.3,2.85166]
[1743790518973,1.7796,1814.5,1814.3,2.85166]
[1743790519170,2.88227,1814.5,1814.3,2.85166]
[1743790519367,1.7399,1814.6,1814.5,1.10265]
[1743790519567,6.05029,1814.6,1814.4,2.85157]
[1743790519763,1.10265,1814.5,1814.4,1.7489]
[1743790519972,2.84253,1814.6,1814.4,1.7489]
[1743790520176,4.62213,1814.6,1814.5,1.10265]
[1743790520376,3.5195,1814.6,1814.5,1.10265]
[1743790520566,1.7757,1814.7,1814.6,1.10259]
[1743790521165,2.87824,1814.7,1814.4,4.50562]
[1743790521371,3.4882,1814.7,1814.4,4.50562]
[1743790521671,3.2078,1814.8,1814.7,1.10252]
[1743790522080,4.9203,1814.8,1814.5,1.10261]
[1743790522375,7.75431,1814.8,1814.6,41.90258]
[1743790522576,6.6518,1814.8,1814.7,1.10252]
[1743790523376,3.444,1814.8,1814.7,1.10252]
[1743790523571,3.444,1814.8,1814.7,2.85792]
[1743790523772,0.00826902,1814.9,1814.8,1.10246]
[1743790524476,1.10246,1814.8,1814.7,1.7554]
[1743790524677,3.2078,1814.8,1814.7,2.85791]
[1743790524972,4.31026,1814.8,1814.7,1.7554]
[1743790525276,6.07176,1814.8,1814.6,1.10255]
[1743790525477,4.9693,1814.8,1814.7,41.90252]
[1743790525680,1.7615,1814.8,1814.7,41.90252]
[1743790525867,4.9693,1814.8,1814.7,41.90252]
[1743790526070,1.7615,1814.8,1814.7,41.90252]
[1743790526577,6.07176,1814.8,1814.7,41.90252]
[1743790527277,4.9693,1814.8,1814.7,41.90252]
[1743790527982,0.00826902,1814.9,1814.8,1.10246]
[1743790528176,0.00826902,1814.9,1814.8,2.82636]
[1743790529287,0.00826902,1814.9,1814.8,1.10246]
[1743790530180,0.00826902,1814.9,1814.8,5.33896]
[1743790530373,0.00826902,1814.9,1814.8,11.04047766]
[1743790530985,9.02e-06,1814.9,1814.8,11.04047766]
[1743790531479,9.02e-06,1814.9,1814.8,11.0397538]
[1743790531883,9.02e-06,1814.9,1814.8,8.5397538]
[1743790532079,9.02e-06,1814.9,1814.8,7.79386]
[1743790532282,9.02e-06,1814.9,1814.8,8.53989816]
[1743790532779,9.02e-06,1814.9,1814.8,7.79386]
[1743790533488,9.02e-06,1814.9,1814.8,4.58606]
[1743790534583,9.02e-06,1814.9,1814.8,2.83896]
[1743790534885,9.02e-06,1814.9,1814.8,3.58528124]
[1743790535379,9.02e-06,1814.9,1814.8,9.29308124]
[1743790536377,9.02e-06,1814.9,1814.8,6.08528124]
[1743790536589,9.02e-06,1814.9,1814.8,9.29308124]
[1743790536881,9.02e-06,1814.9,1814.8,8.54676]
[1743790537085,9.02e-06,1814.9,1814.8,9.29392535]
[1743790539287,26.78375042,1816.3,1816.1,1.10167]
[1743790539488,4.71338,1816.2,1816.1,1.10164]
[1743790539685,3.6117,1816.2,1816.1,1.10164]
[1743790540087,25.35285042,1816.3,1816.2,1.10161]
[1743790540282,23.58421944,1816.3,1816.2,1.10161]
[1743790540787,24.68576944,1816.3,1816.2,2.96151]
[1743790540985,24.68576944,1816.3,1816.0,40.8]
[1743790540986,3.21606902,1816.3,1816.0,40.8]
[1743790541186,1.10174,1816.1,1816.0,40.8]
[1743790541384,3.6117,1816.2,1816.1,1.10167]
[1743790543091,0.00826902,1816.3,1816.2,1.10161]
[1743790544094,1.10981902,1816.3,1816.2,1.10161]
[1743790544299,1.84576902,1816.3,1816.0,43.76161]
[1743790544590,2.94736902,1816.3,1816.0,42.6599]
[1743790544893,1.10167,1816.1,1815.9,0.00826902]
[1743790545097,2.93694,1816.0,1815.9,1.11002902]
[1743790545296,6.14474,1816.0,1815.9,0.00826902]
[1743790546696,6.14474,1816.0,1815.9,1.11006902]
[1743790546994,5.043,1816.0,1815.9,1.11006902]
[1743790547695,1.7123,1816.1,1816.0,1.10174]
[1743790547997,3.7201,1816.2,1816.1,1.10167]
[1743790548393,1.10167,1816.1,1816.0,1.7351]
[1743790548689,1.8236,1816.1,1815.9,0.00826902]
[1743790548893,1.8236,1816.1,1816.0,1.10174]
[1743790549096,0.00826902,1816.3,1816.0,1.7309]
[1743790549295,0.00826902,1816.3,1816.2,1.10161]
[1743790549490,0.00826902,1816.3,1816.0,4.48522]
[1743790549491,1.83186902,1816.3,1816.0,1.7309]
[1743790549695,1.83186902,1816.3,1816.2,1.10161]
[1743790550192,1.83186902,1816.3,1816.1,1.10162]
[1743790550703,1.83186902,1816.3,1816.2,1.10161]
[1743790551294,1.83186902,1816.3,1816.1,1.7309]
[1743790551591,5.03966902,1816.3,1816.2,1.10161]
[1743790551990,6.14125902,1816.3,1816.1,2.83254]
[1743790552186,2.98371,1816.2,1816.1,1.7309]
[1743790552401,1.8821,1816.2,1815.9,0.00826902]
[1743790552599,3.7408,1816.1,1816.0,1.1017]
[1743790553100,3.7408,1816.1,1815.9,1.88536902]
[1743790553402,2.98384,1816.0,1815.9,0.00826902]
[1743790553594,7.18944,1816.0,1815.9,0.00826902]
[1743790554896,6.0877,1816.0,1815.4,1.1021]
[1743790555101,1.10188,1815.8,1815.5,1.7209]
[1743790555303,1.7923,1815.7,1815.6,1.10194]
[1743790555501,5.0001,1815.7,1815.5,2.82289]
[1743790555694,2.90359,1815.6,1815.4,1.10204]
[1743790555900,2.89435,1815.5,1815.3,2.82301]
[1743790556101,3.4994,1815.5,1815.4,1.1021]
[1743790556502,4.60145,1815.5,1815.3,0.00826902]
[1743790557103,3.4994,1815.5,1815.4,1.1021]
[1743790557303,3.4994,1815.5,1815.3,0.00826902]
[1743790557504,4.60146,1815.5,1815.3,0.00826902]
[1743790557706,3.4994,1815.5,1815.3,0.00826902]
[1743790558005,4.60144,1815.5,1815.4,1.1021]
[1743790558204,3.4994,1815.5,1815.3,0.00826902]
[1743790558406,4.60146,1815.5,1815.3,0.00826902]
[1743790558599,4.60145,1815.5,1815.3,0.00826902]
[1743790558803,7.80925,1815.5,1815.3,1.11037902]
[1743790558997,1.1021,1815.4,1815.3,0.00826902]
[1743790559209,2.8125,1815.4,1815.3,0.00826902]
[1743790560098,2.75542,1815.3,1814.8,1.10245]
[1743790560305,3.2078,1814.9,1814.8,1.10246]
[1743790560701,6.764,1814.9,1814.8,1.10246]
[1743790560903,7.86641,1814.9,1814.7,41.90248]
[1743790561103,6.764,1814.9,1814.8,1.10246]
[1743790561303,1.6997,1814.9,1814.8,1.10246]
[1743790561503,0.00826902,1815.0,1814.9,1.1024]
[1743790562199,0.00826902,1815.0,1814.9,5.301]
[1743790562405,3.2078,1815.4,1814.9,6.95456]
[1743790562606,3.2078,1815.4,1815.3,1.10216]
[1743790563412,3.2078,1815.4,1815.3,41.90216]
[1743790563710,4.59234902,1815.5,1815.3,41.90215]
[1743790564312,4.59234902,1815.5,1815.3,40.8]
[1743790564511,4.59234902,1815.5,1815.3,41.90215]
[1743790564700,3.49026902,1815.5,1815.1,1.6986]
[1743790564901,3.2078,1815.4,1815.1,2.80086]
[1743790565205,3.2078,1815.4,1815.2,1.10217]
[1743790565510,3.2078,1815.4,1815.1,1.6986]
[1743790565705,3.49026902,1815.5,1815.3,1.10216]
[1743790566011,3.49026902,1815.5,1815.1,1.6986]
[1743790566206,1.10218,1815.3,1815.1,2.80085]
[1743790566513,4.31004,1815.2,1815.0,1.10231]
[1743790566907,3.2078,1815.2,1814.9,42.6334]
[1743790567208,1.8271,1815.1,1815.0,1.10234]
[1743790567712,1.8271,1815.1,1815.0,2.93574]
[1743790568013,8.48394,1815.4,1815.2,1.10219]
[1743790568207,10.31104,1815.4,1815.2,1.10219]
[1743790568406,3.2078,1815.4,1815.3,1.10216]
[1743790569512,1.70796902,1815.5,1815.3,1.10211]
[1743790569712,0.00826902,1815.5,1815.4,2.846]
[1743790571409,1.11030902,1815.5,1815.4,1.7439]
[1743790571617,0.00826902,1815.5,1815.4,1.7439]
[1743790571816,0.00826902,1815.5,1815.4,2.846]
[1743790572810,1.65304,1815.9,1815.8,1.10186]
[1743790572811,2.8676,1815.9,1815.8,1.10186]
[1743790573209,1.7658,1815.9,1815.8,1.10186]
[1743790573513,2.75494,1815.7,1814.9,46.76381]